Workbook

Sheet Anykščiai
A1: VĮ Valstybinių miškų urėdijos Anykščių regioninio padalinio informacija apie perkamus miškininkystės paslaugų kiekius 2025 metams
A2: Eil. | B2: Paslaugų grupės ir paslaugų pavadinimai | D2: Preliminarios paslaugų apimtys
A3: 1 | B3: Želdaviečių paruošimas miškų sodinimui, želdinių ir žėlinių priežiūra, jaunuolynų ugdymas, griovių šlaitų ir pagriovių, pakelių, kvartalinių ir ribinių linijų priežiūra | C3: Mato vnt. | D3: Mikierių girininkija | E3: Troškūnų girininkija 1 | F3: Mickūnų girininkija 1 | G3: Mickūnų girininkija 2 | H3: Mickūnų girininkija 3 | I3: Mickūnų girininkija 4 | J3: Vyžuonų girininkija 1 | K3: Vyžuonų girininkija 2 | L3: Kuktiškių girininkija 1 | M3: Kuktiškių girininkija 2 | N3: Kavarsko girininkija 1 | O3: Kavarsko girininkija 2 | P3: Dubingių girininkija 1
A4: Pirkimo objekto dalies numeris | D4: 1 | E4: 2 | F4: 3 | G4: 4 | H4: 5 | I4: 6 | J4: 7 | K4: 8 | L4: 9 | M4: 10 | N4: 11 | O4: 12 | P4: 13
A5: 1. | B5: Želdavietės paruošimas miško sodmenų sodinimui šalinant nepageidaujamus medžius, krūmus, žolinę augmeniją | C5: ha
A6: 2. | B6: Miško želdinių ir žėlinių priežiūra šalinant žabus ir žolinę augmeniją | C6: ha | G6: 25 | H6: 26 | I6: 20 | J6: 27 | K6: 20 | P6: 27
A7: 3. | B7: Jaunuolynų ugdymas ir/ar retinimo kirtimai, negaminant likvidinės medienos | C7: ha | F7: 20 | G7: 19.7 | J7: 6.5 | K7: 10 | L7: 15 | M7: 17.7 | N7: 20 | O7: 15.8
A8: 4. | B8: Griovių šlaitų ir pagriovių priežiūra | C8: ha | E8: 2.4 | I8: 0.8 | L8: 0.4 | N8: 2.4
A9: 5. | B9: Pakelių priežiūra | C9: km
A10: 6. | B10: kvartalinių ir ribinių linijų priežūra | C10: km | D10: 10 | I10: 11 | J10: 5 | K10: 5 | N10: 5 | O10: 15
A11: Preliminari 1 metų suma | D11: =+D5*301+D6*263+D7*299+D8*301+D9*53+D10*126 -> 1260 | E11: =+E5*301+E6*263+E7*299+E8*301+E9*53+E10*126 -> 722.4 | F11: 5980 | G11: 12465.3 | H11: 6838 | I11: 6886.8 | J11: 9674.5 | K11: 8880 | L11: 4605.4 | M11: 5292.3 | N11: 7332.4 | O11: 6614.2 | P11: 7101
A12: Maksimali POD suma | D12: =+D11*3*1.3 -> 4914 | E12: =+E11*3*1.3 -> 2817.36 | F12: 23322 | G12: 48614.67 | H12: 26668.2 | I12: 26858.52 | J12: 37730.55 | K12: 34632 | L12: 17961.06 | M12: 20639.97 | N12: 28596.36 | O12: 25795.38 | P12: 27693.9
A14: 3. | B14: Miško sodmenų sodinimas, želdinių ir žėlinių medelių ir jų liemenų apsauga nuo kanopinių žvėrių bei vabzdžių daromos žalos | C14: Mato vnt. | D14: Preliminarios paslaugų apimtys
D15: Troškūnų girininkija 2 | E15: Vyžuonų girininkija 3 | F15: Kuktiškių girininkija 3 | G15: Kuktiškių girininkija 4 | H15: Kuktiškių girininkija 5 | I15: Dubingių girininkija 2 | J15: Dubingių girininkija 3
B16: Pirkimo objekto numeris | D16: 14 | E16: 15 | F16: 16 | G16: 17 | H16: 18 | I16: 19 | J16: 20
A17: 8. | B17: Miško atkūrimas, įveisimas ir atsodinimas (medelių ir krūmų sodinimas) | C17: tūkst. vnt. | E17: 34 | F17: 10 | G17: 30 | H17: 38 | I17: 54
A18: 9. | B18: Želdinių, žėlinių apsauga nuo kanopinių žvėrių bei vabzdžių daromos žalos | C18: tūkst. vnt. | D18: 28 | J18: 85.7
A19: 10. | B19: Želdinių, žėlinių ir medelių kamienų apsauga nuo kanopinių žvėrių daromos žalos | C19: tūkst. vnt.
A20: Preliminari 1 metų suma | D20: =+D17*178+D18*27+D19*390 -> 756 | E20: =+E17*178+E18*27+E19*390 -> 6052 | F20: 1780 | G20: 5340 | H20: 6764 | I20: 9612 | J20: 2313.9
A21: Maksimali POD suma | D21: =+D20*3*1.3 -> 2948.4 | E21: =+E20*3*1.3 -> 23602.8 | F21: 6942 | G21: 20826 | H21: 26379.6 | I21: 37486.8 | J21: 9024.21

Sheet Biržai
A1: VĮ Valstybinių miškų urėdijos Biržų regioninio padalinio informacija apie perkamus miškininkystės paslaugų kiekius 2025 metams
A2: Eil. | B2: Paslaugų grupės ir paslaugų pavadinimai | D2: Preliminarios paslaugų apimtys
A3: 1 | B3: Želdaviečių paruošimas miškų sodinimui, želdinių ir žėlinių priežiūra, jaunuolynų ugdymas, griovių šlaitų ir pagriovių, pakelių, kvartalinių ir ribinių linijų priežiūra | C3: Mato vnt. | D3: Biržų RP teritorija 1 | E3: Biržų RP teritorija 2 | F3: Biržų RP teritorija 3 | G3: Biržų RP teritorija 4 | H3: Biržų RP teritorija 5 | I3: Biržų RP teritorija 6 | J3: Biržų RP teritorija 7 | K3: Biržų RP teritorija 8 | L3: Biržų RP teritorija 9 | M3: Biržų RP teritorija 10 | N3: Biržų RP teritorija 11 | O3: Biržų RP teritorija 12 | P3: Biržų RP teritorija 13
A4: Pirkimo objekto dalies numeris | D4: 21 | E4: 22 | F4: 23 | G4: 24 | H4: 25 | I4: 26 | J4: 27 | K4: 28 | L4: 29 | M4: 30 | N4: 31 | O4: 32 | P4: 33
A5: 1. | B5: Želdavietės paruošimas miško sodmenų sodinimui šalinant nepageidaujamus medžius, krūmus, žolinę augmeniją | C5: ha | D5: 0 | E5: 0 | F5: 0 | G5: 0 | H5: 0 | I5: 0 | J5: 0 | K5: 0 | L5: 0 | M5: 0 | N5: 0 | O5: 0 | P5: 0
A6: 2. | B6: Miško želdinių ir žėlinių priežiūra šalinant žabus ir žolinę augmeniją | C6: ha | D6: 16 | E6: 16 | F6: 16 | G6: 16 | H6: 16 | I6: 8 | J6: 8 | K6: 8 | L6: 8 | M6: 8 | N6: 8 | O6: 8 | P6: 8
A7: 3. | B7: Jaunuolynų ugdymas ir/ar retinimo kirtimai, negaminant likvidinės medienos | C7: ha | D7: 10 | E7: 10 | F7: 10 | G7: 10 | H7: 10 | I7: 5 | J7: 5 | K7: 5 | L7: 5 | M7: 5 | N7: 5 | O7: 5 | P7: 5
A8: 4. | B8: Griovių šlaitų ir pagriovių priežiūra | C8: ha | D8: 0 | E8: 0 | F8: 0 | G8: 0 | H8: 0 | I8: 0 | J8: 0 | K8: 0 | L8: 0 | M8: 0 | N8: 0 | O8: 0 | P8: 0
A9: 5. | B9: Pakelių priežiūra | C9: km | D9: 0 | E9: 0 | F9: 0 | G9: 0 | H9: 0 | I9: 0 | J9: 0 | K9: 0 | L9: 0 | M9: 0 | N9: 0 | O9: 0 | P9: 0
A10: 6. | B10: kvartalinių ir ribinių linijų priežūra | C10: km | D10: 0 | E10: 0 | F10: 0 | G10: 0 | H10: 0 | I10: 0 | J10: 0 | K10: 0 | L10: 0 | M10: 0 | N10: 0 | O10: 0 | P10: 0
A11: Preliminari 1 metų suma | D11: =+D5*301+D6*263+D7*299+D8*301+D9*53+D10*126 -> 7198 | E11: =+E5*301+E6*263+E7*299+E8*301+E9*53+E10*126 -> 7198 | F11: 7198 | G11: 7198 | H11: 7198 | I11: 3599 | J11: 3599 | K11: 3599 | L11: 3599 | M11: 3599 | N11: 3599 | O11: 3599 | P11: 3599
A12: Maksimali POD suma | D12: =+D11*3*1.3 -> 28072.2 | E12: =+E11*3*1.3 -> 28072.2 | F12: 28072.2 | G12: 28072.2 | H12: 28072.2 | I12: 14036.1 | J12: 14036.1 | K12: =+K11*3*1.3 -> 14036.1 | L12: =+L11*3*1.3 -> 14036.1 | M12: =+M11*3*1.3 -> 14036.1 | N12: =+N11*3*1.3 -> 14036.1 | O12: =+O11*3*1.3 -> 14036.1 | P12: 14036.1
B14: *Latvelių, Spalviškių, Būginių, Pasvalio, Kriklinių girininkijų teritorijos

Sheet Druskininkai
A1: VĮ Valstybinių miškų urėdijos Druskininkų regioninio padalinio informacija apie perkamus miškininkystės paslaugų kiekius 2025 m.
A2: Eil. | B2: Paslaugų grupės ir paslaugų pavadinimai | C2: Preliminarios paslaugų apimtys
A3: 1 | B3: Želdaviečių paruošimas miškų sodinimui, želdinių ir žėlinių priežiūra, jaunuolynų ugdymas, griovių šlaitų ir pagriovių, pakelių, kvartalinių ir ribinių linijų priežiūra | C3: Mato vnt. | D3: Ančios girininkija | E3: Krosnos girininkija 1 | F3: Leipalingio girininkija 1 | G3: Latežerio girininkija 1 | H3: Grūto girininkija 1 | I3: Merkinės girininkija 1 | J3: Musteikos girininkija 1
A4: Pirkimo objekto dalies numeris | D4: 34 | E4: 35 | F4: 36 | G4: 37 | H4: 38 | I4: 39 | J4: 40
A5: 1. | B5: Želdavietės paruošimas miško sodmenų sodinimui šalinant nepageidaujamus medžius, krūmus, žolinę augmeniją | C5: ha | D5: 0 | E5: 0 | F5: 5 | G5: 0 | H5: 0 | I5: 1 | J5: 0
A6: 2. | B6: Miško želdinių ir žėlinių priežiūra šalinant žabus ir žolinę augmeniją | C6: ha | D6: 0 | E6: 35 | F6: 0 | G6: 60 | H6: 50 | I6: 120 | J6: 15
A7: 3. | B7: Jaunuolynų ugdymas ir/ar retinimo kirtimai, negaminant likvidinės medienos | C7: ha | D7: 20 | E7: 30 | F7: 5 | G7: 60 | H7: 40 | I7: 25 | J7: 5
A8: 4. | B8: Griovių šlaitų ir pagriovių priežiūra | C8: ha | D8: 2 | E8: 3 | F8: 0 | G8: 0 | H8: 1 | I8: 0 | J8: 2
A9: 5. | B9: Pakelių priežiūra | C9: km | D9: 3 | E9: 5 | F9: 0 | G9: 0 | H9: 0 | I9: 0 | J9: 3
A10: 6. | B10: kvartalinių ir ribinių linijų priežūra | C10: km | D10: 10 | E10: 10 | F10: 0 | G10: 2 | H10: 1 | I10: 5 | J10: 3
A11: Preliminari 1 metų suma | D11: =+D5*301+D6*263+D7*299+D8*301+D9*53+D10*126 -> 8001 | E11: =+E5*301+E6*263+E7*299+E8*301+E9*53+E10*126 -> 20603 | F11: 3000 | G11: 33972 | H11: 25537 | I11: 39966 | J11: 6579
A12: Maksimali POD suma | D12: =+D11*3*1.3 -> 31203.9 | E12: =+E11*3*1.3 -> 80351.7 | F12: 11700 | G12: 132490.8 | H12: 99594.3 | I12: 155867.4 | J12: 25658.1
A14: 3. | B14: Miško sodmenų sodinimas, želdinių ir žėlinių medelių ir jų liemenų apsauga nuo kanopinių žvėrių bei vabzdžių daromos žalos | C14: Mato vnt. | D14: Preliminarios paslaugų apimtys
D15: Krosnos girininkija 2 | E15: Musteikos girininkija 2 | F15: Leipalingio girininkija 2 | G15: Latežerio girininkija 2 | H15: Merkinės girininkija 2
A16: Pirkimo objekto dalies numeris | D16: 41 | E16: 42 | F16: 43 | G16: 44 | H16: 45
A17: 8. | B17: Miško atkūrimas, įveisimas ir atsodinimas (medelių ir krūmų sodinimas) | C17: tūkst. vnt. | D17: 100 | E17: 50 | F17: 0 | G17: 100 | H17: 0
A18: 9. | B18: Želdinių, žėlinių apsauga nuo kanopinių žvėrių bei vabzdžių daromos žalos | C18: tūkst. vnt. | D18: 0 | E18: 0 | F18: 300 | G18: 0 | H18: 200
A19: 10. | B19: Želdinių, žėlinių ir medelių kamienų apsauga nuo kanopinių žvėrių daromos žalos | C19: tūkst. vnt. | D19: 0 | E19: 0 | F19: 10 | G19: 0 | H19: 0
A20: Preliminari 1 metų suma | D20: =+D17*178+D18*27+D19*390 -> 17800 | E20: =+E17*178+E18*27+E19*390 -> 8900 | F20: 12000 | G20: =+G17*178+G18*27+G19*390 -> 17800 | H20: =+H17*178+H18*27+H19*390 -> 5400
A21: Maksimali POD suma | D21: =+D20*3*1.3 -> 69420 | E21: =+E20*3*1.3 -> 34710 | F21: 46800 | G21: =+G20*3*1.3 -> 69420 | H21: =+H20*3*1.3 -> 21060
A23: 4. | B23: Želdinių, žėlinių apsauga nuo kanopinių žvėrių daromos žalos, tveriant vielos tinklo tvorą | C23: Mato vnt. | D23: Preliminarios paslaugų apimtys
D24: Musteikos girininkija 3 | E24: Merkinės girininkija 3
A25: Pirkimo objekto dalies numeris | D25: 46 | E25: 47
A26: 11. | B26: Želdinių, žėlinių apsauga nuo kanopinių žvėrių daromos žalos, tveriant vielos tinklo tvorą | C26: m | D26: 1500 | E26: 1000
A27: Preliminari 1 metų suma | D27: =+D26*1.85 -> 2775 | E27: =+E26*1.85 -> 1850
A28: Maksimali POD suma | D28: =+D27*3*1.3 -> 10822.5 | E28: =+E27*3*1.3 -> 7215
A30: 5. | B30: Sodmenų transportavimo paslaugos | C30: Mato vnt. | D30: Preliminarios paslaugų apimtys
D31: Krosnos girininkija 3 | E31: Kapčiamiesčio girininkija | F31: Leipalingio girininkija 3 | G31: Latežerio girininkija 3 | H31: Grūto girininkija 2 | I31: Merkinės girininkija 4 | J31: Musteikos girininkija 4
A32: Pirkimo objekto dalies numeris | D32: 48 | E32: 49 | F32: 50 | G32: 51 | H32: 52 | I32: 53 | J32: 54
A33: 12. | B33: Sodmenų transportavimo paslaugos | C33: km | D33: 70 | E33: 60 | F33: 60 | G33: 60 | H33: 50 | I33: 50 | J33: 60
A34: Preliminari 1 metų suma | D34: =+D33*1.5 -> 105 | E34: =+E33*1.5 -> 90 | F34: 90 | G34: 90 | H34: 75 | I34: 75 | J34: 90
A35: Maksimali POD suma | D35: =+D34*3*1.3 -> 409.5 | E35: =+E34*3*1.3 -> 351 | F35: 351 | G35: 351 | H35: 292.5 | I35: 292.5 | J35: 351

Sheet Dubrava
A1: VĮ Valstybinių miškų urėdijos Dubravos regioninio padalinio informacija apie perkamus miškininkystės paslaugų kiekius 2025 metams
A2: Eil. | B2: Paslaugų grupės ir paslaugų pavadinimai | C2: Preliminarios paslaugų apimtys
A3: 1 | B3: Želdaviečių paruošimas miškų sodinimui, želdinių ir žėlinių priežiūra, jaunuolynų ugdymas, griovių šlaitų ir pagriovių, pakelių, kvartalinių ir ribinių linijų priežiūra | C3: Mato vnt. | D3: Upninkų girininkija | E3: Karmėlavos girininkija | F3: Padauguvos girininkija 1 | G3: Sitkūnų girininkija | H3: Ežerėlio girininkija | I3: Vaišvydavos girininkija | J3: Girelės girininkija | K3: Gaižiūnų girininkija | L3: Dubravos padalinys
A4: Pirkimo objekto dalies numeris | D4: 55 | E4: 56 | F4: 57 | G4: 58 | H4: 59 | I4: 60 | J4: 61 | K4: 62 | L4: 63
A5: 1. | B5: Želdavietės paruošimas miško sodmenų sodinimui šalinant nepageidaujamus medžius, krūmus, žolinę augmeniją | C5: ha
A6: 2. | B6: Miško želdinių ir žėlinių priežiūra šalinant žabus ir žolinę augmeniją | C6: ha | D6: 100 | E6: 95 | F6: 80 | G6: 70 | H6: 95 | I6: 150 | J6: 30
A7: 3. | B7: Jaunuolynų ugdymas ir/ar retinimo kirtimai, negaminant likvidinės medienos | C7: ha | D7: 60 | E7: 55 | F7: 35 | G7: 20 | H7: 60 | I7: 120 | J7: 100 | K7: 15
A8: 4. | B8: Griovių šlaitų ir pagriovių priežiūra | C8: ha | D8: 20 | E8: 20 | G8: 20 | H8: 10 | I8: 10 | J8: 10 | K8: 15
A9: 5. | B9: Pakelių priežiūra | C9: km | L9: 20
A10: 6. | B10: kvartalinių ir ribinių linijų priežūra | C10: km | D10: 45 | E10: 20 | H10: 15 | I10: 15
A11: Preliminari 1 metų suma | D11: =+D5*301+D6*263+D7*299+D8*301+D9*53+D10*126 -> 55930 | E11: =+E5*301+E6*263+E7*299+E8*301+E9*53+E10*126 -> 49970 | F11: 31505 | G11: 30410 | H11: 47825 | I11: 80230 | J11: 40800 | K11: 9000 | L11: 1060
A12: Maksimali POD suma | D12: =+D11*3*1.3 -> 218127 | E12: =+E11*3*1.3 -> 194883 | F12: 122869.5 | G12: 118599 | H12: 186517.5 | I12: 312897 | J12: 159120 | K12: 35100 | L12: 4134
A14: 3. | B14: Miško sodmenų sodinimas, želdinių ir žėlinių medelių ir jų liemenų apsauga nuo kanopinių žvėrių bei vabzdžių daromos žalos | C14: Mato vnt. | D14: Preliminarios paslaugų apimtys
D15: Dubravos regioninis padalinys 1 | E15: Padauguvos girininkija 2
A16: Pirkimo objekto dalies numeris | D16: 64 | E16: 65
A17: 8. | B17: Miško atkūrimas, įveisimas ir atsodinimas (medelių ir krūmų sodinimas) | C17: tūkst. vnt. | E17: 90
A18: 9. | B18: Želdinių, žėlinių apsauga nuo kanopinių žvėrių bei vabzdžių daromos žalos | C18: tūkst. vnt.
A19: 10. | B19: Želdinių, žėlinių ir medelių kamienų apsauga nuo kanopinių žvėrių daromos žalos | C19: tūkst. vnt. | D19: 12
A20: Preliminari 1 metų suma | D20: =+D17*178+D18*27+D19*390 -> 4680 | E20: =+E17*178+E18*27+E19*390 -> 16020
A21: Maksimali POD suma | D21: =+D20*3*1.3 -> 18252 | E21: =+E20*3*1.3 -> 62478
A23: 4. | B23: Želdinių, žėlinių apsauga nuo kanopinių žvėrių daromos žalos, tveriant vielos tinklo tvorą | C23: Mato vnt. | D23: Preliminarios paslaugų apimtys
D24: Dubravos regioninis padalinys 2
A25: Pirkimo objekto dalies numeris | D25: 66
A26: 11. | B26: Želdinių, žėlinių apsauga nuo kanopinių žvėrių daromos žalos, tveriant vielos tinklo tvorą | C26: m | D26: 5000
A27: Preliminari 1 metų suma | D27: =+D26*1.85 -> 9250
A28: Maksimali POD suma | D28: =+D27*3*1.3 -> 36075

Sheet Ignalina
A1: VĮ Valstybinių miškų urėdijos Ignalinos regioninio padalinio informacija apie perkamus miškininkystės paslaugų kiekius 2025 metams
A2: Eil. | B2: Paslaugų grupės ir paslaugų pavadinimai | C2: Preliminarios paslaugų apimtys
A3: 1 | B3: Želdaviečių paruošimas miškų sodinimui, želdinių ir žėlinių priežiūra, jaunuolynų ugdymas, griovių šlaitų ir pagriovių, pakelių, kvartalinių ir ribinių linijų priežiūra | C3: Mato vnt. | D3: Dūkšto girininkija | E3: Minčiagirės girininkija | F3: Daugėliškio, Tverečiaus girininkija | G3: Gražutės girininkija | H3: Antazavės girininkija 1 | I3: Antazavės girininkija 2 | J3: Antazavės girininkija 3
A4: Pirkimo objekto dalies numeris | D4: 67 | E4: 68 | F4: 69 | G4: 70 | H4: 71 | I4: 72 | J4: 73
A5: 1. | B5: Želdavietės paruošimas miško sodmenų sodinimui šalinant nepageidaujamus medžius, krūmus, žolinę augmeniją | C5: ha
A6: 2. | B6: Miško želdinių ir žėlinių priežiūra šalinant žabus ir žolinę augmeniją | C6: ha | D6: 90 | E6: 60 | F6: 40 | G6: 85 | H6: 40 | I6: 30 | J6: 15
A7: 3. | B7: Jaunuolynų ugdymas ir/ar retinimo kirtimai, negaminant likvidinės medienos | C7: ha | D7: 32 | E7: 21 | G7: 29 | H7: 18 | J7: 14
A8: 4. | B8: Griovių šlaitų ir pagriovių priežiūra | C8: ha
A9: 5. | B9: Pakelių priežiūra | C9: km
A10: 6. | B10: kvartalinių ir ribinių linijų priežūra | C10: km
A11: Preliminari 1 metų suma | D11: =+D5*301+D6*263+D7*299+D8*301+D9*53+D10*126 -> 33238 | E11: =+E5*301+E6*263+E7*299+E8*301+E9*53+E10*126 -> 22059 | F11: 10520 | G11: 31026 | H11: 15902 | I11: 7890 | J11: 8131
A12: Maksimali POD suma | D12: =+D11*3*1.3 -> 129628.2 | E12: =+E11*3*1.3 -> 86030.1 | F12: 41028 | G12: 121001.4 | H12: 62017.8 | I12: 30771 | J12: 31710.9

Sheet Jurbarkas
A1: VĮ Valstybinių miškų urėdijos Jurbarko regioninio padalinio informacija apie perkamus miškininkystės paslaugų kiekius 2025 metams
A2: Eil. | B2: Paslaugų grupės ir paslaugų pavadinimai | C2: Preliminarios paslaugų apimtys
A3: 1 | B3: Želdaviečių paruošimas miškų sodinimui, želdinių ir žėlinių priežiūra, jaunuolynų ugdymas, griovių šlaitų ir pagriovių, pakelių, kvartalinių ir ribinių linijų priežiūra | C3: Mato vnt. | D3: Jūravos girininkija | E3: Balandinės girininkija | F3: Kalvelių girininkija
A4: Pirkimo objekto dalies numeris | D4: 74 | E4: 75 | F4: 76
A5: 1. | B5: Želdavietės paruošimas miško sodmenų sodinimui šalinant nepageidaujamus medžius, krūmus, žolinę augmeniją | C5: ha
A6: 2. | B6: Miško želdinių ir žėlinių priežiūra šalinant žabus ir žolinę augmeniją | C6: ha | D6: 30 | E6: 90
A7: 3. | B7: Jaunuolynų ugdymas ir/ar retinimo kirtimai, negaminant likvidinės medienos | C7: ha | E7: 53.9 | F7: 31
A8: 4. | B8: Griovių šlaitų ir pagriovių priežiūra | C8: ha | E8: 10 | F8: 2
A9: 5. | B9: Pakelių priežiūra | C9: km
A10: 6. | B10: kvartalinių ir ribinių linijų priežūra | C10: km
A11: Preliminari 1 metų suma | D11: =+D5*301+D6*263+D7*299+D8*301+D9*53+D10*126 -> 7890 | E11: =+E5*301+E6*263+E7*299+E8*301+E9*53+E10*126 -> 42796.1 | F11: 9871
A12: Maksimali POD suma | D12: =+D11*3*1.3 -> 30771 | E12: =+E11*3*1.3 -> 166904.79 | F12: 38496.9

Sheet Kazlų Rūda
A1: VĮ Valstybinių miškų urėdijos Kazlų Rūdos regioninio padalinio informacija apie perkamus miškininkystės paslaugų kiekius 2025 metams
A2: Eil. | B2: Paslaugų grupės ir paslaugų pavadinimai | C2: Preliminarios paslaugų apimtys
A3: 1 | B3: Želdaviečių paruošimas miškų sodinimui, želdinių ir žėlinių priežiūra, jaunuolynų ugdymas, griovių šlaitų ir pagriovių, pakelių, kvartalinių ir ribinių linijų priežiūra | C3: Mato vnt. | D3: Agurkiškės girininkija 1 | E3: Bagotosios girininkija 1 | F3: Jūrės girininkija 1 | G3: Kalvarijos girininkija | H3: Kazlų Rūdos girininkija 1 | I3: Novos girininkija 1 | J3: Pajevonio girininkija | K3: Šunskų girininkija 1 | L3: Varnabūdės girininkija 1
A4: Pirkimo objekto dalies numeris | D4: 77 | E4: 78 | F4: 79 | G4: 80 | H4: 81 | I4: 82 | J4: 83 | K4: 84 | L4: 85
A5: 1. | B5: Želdavietės paruošimas miško sodmenų sodinimui šalinant nepageidaujamus medžius, krūmus, žolinę augmeniją | C5: ha | D5: 7 | E5: 6 | F5: 4 | K5: 25.7
A6: 2. | B6: Miško želdinių ir žėlinių priežiūra šalinant žabus ir žolinę augmeniją | C6: ha | D6: 143 | E6: 39 | F6: 15 | G6: 6.8 | H6: 27 | I6: 44 | J6: 4.5 | K6: 194.7 | L6: 148
A7: 3. | B7: Jaunuolynų ugdymas ir/ar retinimo kirtimai, negaminant likvidinės medienos | C7: ha | D7: 15 | E7: 8.8 | F7: 32.2 | G7: 7 | J7: 1 | K7: 24.8 | L7: 22.7
A8: 4. | B8: Griovių šlaitų ir pagriovių priežiūra | C8: ha | D8: 40 | E8: 3.8 | F8: 45.5 | G8: 2 | H8: 17 | I8: 13 | J8: 4.5 | K8: 14 | L8: 2
A9: 5. | B9: Pakelių priežiūra | C9: km | D9: 6 | E9: 10 | G9: 30 | H9: 4 | I9: 20 | J9: 0 | K9: 14
A10: 6. | B10: kvartalinių ir ribinių linijų priežūra | C10: km | D10: 32 | E10: 16 | F10: 37 | G10: 8 | I10: 12 | J10: 24 | L10: 24
A11: Preliminari 1 metų suma | D11: =+D5*301+D6*263+D7*299+D8*301+D9*53+D10*126 -> 60591 | E11: =+E5*301+E6*263+E7*299+E8*301+E9*53+E10*126 -> 18384 | F11: 33134.3 | G11: 7081.4 | H11: 12430 | I11: 18057 | J11: 5861 | K11: 71313 | L11: 49337.3
A12: Maksimali POD suma | D12: =+D11*3*1.3 -> 236304.9 | E12: =+E11*3*1.3 -> 71697.6 | F12: 129223.77 | G12: 27617.46 | H12: 48477 | I12: 70422.3 | J12: 22857.9 | K12: 278120.7 | L12: 192415.47
A14: 3. | B14: Miško sodmenų sodinimas, želdinių ir žėlinių medelių ir jų liemenų apsauga nuo kanopinių žvėrių bei vabzdžių daromos žalos | C14: Mato vnt. | D14: Preliminarios paslaugų apimtys
D15: Agurkiškės girininkija 2 | E15: Bagotosios girininkija 2 | F15: Jūrės girininkija 2 | G15: Kazlų Rūdos girininkija 2 | H15: Novos girininkija 2 | I15: Šunskų girininkija 2 | J15: Varnabūdės girininkija 2
A16: Pirkimo objekto dalies numeris | D16: 86 | E16: 87 | F16: 88 | G16: 89 | H16: 90 | I16: 91 | J16: 92
A17: 8. | B17: Miško atkūrimas, įveisimas ir atsodinimas (medelių ir krūmų sodinimas) | C17: tūkst. vnt. | D17: 104.6 | E17: 270.5 | F17: 109.2 | G17: 270.6 | H17: 119.3
A18: 9. | B18: Želdinių, žėlinių apsauga nuo kanopinių žvėrių bei vabzdžių daromos žalos | C18: tūkst. vnt. | D18: 74 | E18: 20 | F18: 50 | G18: 40 | I18: 82.5
A19: 10. | B19: Želdinių, žėlinių ir medelių kamienų apsauga nuo kanopinių žvėrių daromos žalos | C19: tūkst. vnt. | G19: 3 | J19: 48
A20: Preliminari 1 metų suma | D20: =+D17*178+D18*27+D19*390 -> 20616.8 | E20: =+E17*178+E18*27+E19*390 -> 48689 | F20: 20787.6 | G20: 50416.8 | H20: 21235.4 | I20: 2227.5 | J20: 18720
A21: Maksimali POD suma | D21: =+D20*3*1.3 -> 80405.52 | E21: =+E20*3*1.3 -> 189887.1 | F21: 81071.64 | G21: 196625.52 | H21: 82818.06 | I21: 8687.25 | J21: 73008
A23: 5. | B23: Sodmenų transportavimo paslaugos | C23: Mato vnt. | D23: Preliminarios paslaugų apimtys
D24: Kazlų Rūdos regioninis padalinys
A25: Pirkimo objekto dalies numeris | D25: 93
A26: 12. | B26: Sodmenų transportavimo paslaugos | C26: km | D26: 13412
A27: Preliminari 1 metų suma | D27: =+D26*1.5 -> 20118
A28: Maksimali POD suma | D28: =+D27*3*1.3 -> 78460.2

Sheet Kretinga
A1: VĮ Valstybinių miškų urėdijos Kretingos regioninio padalinio informacija apie perkamus miškininkystės paslaugų kiekius 2025 metams
A2: Eil. | B2: Paslaugų grupės ir paslaugų pavadinimai | C2: Preliminarios paslaugų apimtys
A3: 1 | B3: Želdaviečių paruošimas miškų sodinimui, želdinių ir žėlinių priežiūra, jaunuolynų ugdymas, griovių šlaitų ir pagriovių, pakelių, kvartalinių ir ribinių linijų priežiūra | C3: Mato vnt. | D3: Palangos, Juodkrantės, Nidos girininkijos 1 | E3: Šernų girininkija 1 | F3: Kartenos girininkija 1
A4: Pirkimo objekto dalies numeris | D4: 94 | E4: 95 | F4: 96
A5: 1. | B5: Želdavietės paruošimas miško sodmenų sodinimui šalinant nepageidaujamus medžius, krūmus, žolinę augmeniją | C5: ha | D5: 8 | E5: 8 | F5: 8
A6: 2. | B6: Miško želdinių ir žėlinių priežiūra šalinant žabus ir žolinę augmeniją | C6: ha | D6: 30 | E6: 30 | F6: 28
A7: 3. | B7: Jaunuolynų ugdymas ir/ar retinimo kirtimai, negaminant likvidinės medienos | C7: ha | D7: 15 | E7: 15 | F7: 15
A8: 4. | B8: Griovių šlaitų ir pagriovių priežiūra | C8: ha | D8: 6 | E8: 6 | F8: 6
A9: 5. | B9: Pakelių priežiūra | C9: km | D9: 16 | E9: 16 | F9: 17
A10: 6. | B10: kvartalinių ir ribinių linijų priežūra | C10: km | D10: 12 | E10: 12 | F10: 12
A11: Preliminari 1 metų suma | D11: =+D5*301+D6*263+D7*299+D8*301+D9*53+D10*126 -> 18949 | E11: =+E5*301+E6*263+E7*299+E8*301+E9*53+E10*126 -> 18949 | F11: 18476
A12: Maksimali POD suma | D12: =+D11*3*1.3 -> 73901.1 | E12: =+E11*3*1.3 -> 73901.1 | F12: 72056.4
A14: 3. | B14: Miško sodmenų sodinimas, želdinių ir žėlinių medelių ir jų liemenų apsauga nuo kanopinių žvėrių bei vabzdžių daromos žalos | C14: Mato vnt. | D14: Preliminarios paslaugų apimtys
D15: Palangos, Juodkrantės, Nidos girininkijos 2
A16: Pirkimo objekto dalies numeris | D16: 97
A17: 8. | B17: Miško atkūrimas, įveisimas ir atsodinimas (medelių ir krūmų sodinimas) | C17: tūkst. vnt. | D17: 65
A18: 9. | B18: Želdinių, žėlinių apsauga nuo kanopinių žvėrių bei vabzdžių daromos žalos | C18: tūkst. vnt. | D18: 95
A19: 10. | B19: Želdinių, žėlinių ir medelių kamienų apsauga nuo kanopinių žvėrių daromos žalos | C19: tūkst. vnt. | D19: 35
A20: Preliminari 1 metų suma | D20: =+D17*178+D18*27+D19*390 -> 27785
A21: Maksimali POD suma | D21: =+D20*3*1.3 -> 108361.5
A23: 4. | B23: Želdinių, žėlinių apsauga nuo kanopinių žvėrių daromos žalos, tveriant vielos tinklo tvorą | C23: Mato vnt. | D23: Preliminarios paslaugų apimtys
D24: Grūšlaukės girininkija | E24: Šernų girininkija 2 | F24: Kartenos girininkija 2
A25: Pirkimo objekto dalies numeris | D25: 98 | E25: 99 | F25: 100
A26: 11. | B26: Želdinių, žėlinių apsauga nuo kanopinių žvėrių daromos žalos, tveriant vielos tinklo tvorą | C26: m | D26: 10000 | E26: 10000 | F26: 10000
A27: Preliminari 1 metų suma | D27: =+D26*1.85 -> 18500 | E27: =+E26*1.85 -> 18500 | F27: 18500
A28: Maksimali POD suma | D28: =+D27*3*1.3 -> 72150 | E28: =+E27*3*1.3 -> 72150 | F28: 72150
